bitfinex/quotes_SOLUSD_20240718
["timestamp","ask_amount","ask_price","bid_price","bid_amount"]
[1721329075274,0.80486766,156.85,156.82,6.3764]
[1721329076178,0.80486766,156.85,156.83,6.3763]
[1721329076379,7.18006766,156.86,156.82,6.3766]
[1721329076600,0.80486766,156.85,156.82,6.3766]
[1721329076806,0.80486766,156.85,156.81,6.3769]
[1721329076977,7.18056766,156.85,156.81,6.3769]
[1721329077175,22.0619,156.84,156.8,6.3774]
[1721329077379,0.80486766,156.83,156.73,6.5589]
[1721329077577,16.49056766,156.84,156.74,21.27547916]
[1721329077880,0.80486766,156.85,156.83,6.3763]
[1721329078089,0.80486766,156.87,156.83,6.3763]
[1721329078306,0.80486766,156.87,156.82,6.3767]
[1721329078692,0.80486766,156.87,156.75,1.2752979]
[1721329078891,0.80486766,156.87,156.84,6.3756]
[1721329079289,16.41596766,156.88,156.86,6.3751]
[1721329079492,16.41596766,156.88,156.84,6.3758]
[1721329079694,16.41596766,156.88,156.85,6.3753]
[1721329080206,15.6111,156.88,156.87,6.3747]
[1721329080506,15.6111,156.88,156.79,16.6608]
[1721329080683,0.80486766,156.87,156.84,6.3758]
[1721329080879,21.9854,156.88,156.85,6.3754]
[1721329080880,16.41596766,156.88,156.85,6.3754]
[1721329081085,15.6111,156.88,156.86,6.375]
[1721329082097,0.80486766,156.91,156.87,6.3747]
[1721329082304,0.80486766,156.91,156.81,1.27516047]
[1721329082495,0.80486766,156.91,156.81,45.0]
[1721329082695,0.80486766,156.91,156.82,20.0]
[1721329082886,6.3751,156.86,156.82,20.0]
[1721329083509,6.3759,156.85,156.82,20.0]
[1721329083810,0.80486766,156.84,156.81,6.377]
[1721329084007,7.18086766,156.84,156.79,6.3776]
[1721329084793,7.18086766,156.84,156.8,6.3773]
[1721329085001,0.80486766,156.84,156.81,6.3768]
[1721329085187,0.80486766,156.83,156.81,6.3768]
[1721329085388,0.80486766,156.83,156.8,6.3775]
[1721329085593,15.3208,156.86,156.8,6.3775]
[1721329086200,15.3208,156.86,156.83,6.3759]
[1721329087202,15.3208,156.86,156.82,6.3766]
[1721329087510,6.3755,156.85,156.81,6.377]
[1721329087808,0.80486766,156.84,156.81,6.377]
[1721329087993,21.696,156.86,156.81,6.377]
[1721329088190,6.3763,156.83,156.75,16.84875949]
[1721329088396,0.80486766,156.82,156.79,6.3776]
[1721329088894,0.80486766,156.82,156.8,6.3773]
[1721329089112,0.80486766,156.82,156.79,6.3778]
[1721329089410,0.80486766,156.83,156.8,6.3774]
[1721329091792,15.3208,156.86,156.77,1.27547388]
[1721329092004,0.80486766,156.84,156.77,1.27547388]
[1721329092396,7.18096766,156.84,156.8,6.3772]
[1721329092810,6.3764,156.83,156.79,6.3779]
[1721329092991,0.80486766,156.82,156.79,6.3779]
[1721329093713,0.80486766,156.82,156.8,6.3775]
[1721329093900,0.80486766,156.83,156.8,6.3775]
[1721329094101,0.80486766,156.83,156.77,1.27552617]
[1721329094419,0.80486766,156.85,156.82,6.3766]
[1721329094624,0.80486766,156.85,156.76,65.0]
[1721329095125,0.80486766,156.85,156.82,6.3767]
[1721329095308,0.80486766,156.85,156.76,65.0]
[1721329095512,6.3762,156.84,156.76,65.0]
[1721329095707,0.80486766,156.83,156.76,65.0]
[1721329096007,0.80486766,156.83,156.8,6.3774]
[1721329096212,0.80486766,156.83,156.81,6.377]
[1721329096620,0.80486766,156.84,156.81,6.377]
[1721329096924,0.80486766,156.84,156.82,6.3767]
[1721329097801,0.80486766,156.85,156.82,6.3767]
[1721329098299,0.80486766,156.85,156.83,6.3762]
[1721329098604,0.80486766,156.85,156.82,6.3766]
[1721329098831,7.18046766,156.85,156.76,65.0]
[1721329099509,0.80486766,156.85,156.77,1.27533883]
[1721329099710,0.80486766,156.85,156.82,6.3767]
[1721329099918,7.18056766,156.85,156.8,6.3771]
[1721329100817,6.3759,156.84,156.8,6.3771]
[1721329101022,6.3759,156.84,156.76,20.0]
[1721329101023,6.3767,156.82,156.76,20.0]
[1721329101210,0.80486766,156.81,156.77,6.3786]
[1721329102026,0.80486766,156.81,156.78,6.3782]
[1721329102223,0.80486766,156.81,156.77,6.3786]
[1721329103029,0.80486766,156.81,156.75,6.3793]
[1721329103243,0.80486766,156.81,156.74,6.3797]
[1721329103244,6.3782,156.79,156.74,6.3797]
[1721329103414,0.80486766,156.78,156.74,6.3797]
[1721329104817,0.80486766,156.78,156.75,6.3795]
[1721329105020,7.18336766,156.78,156.74,6.3799]
[1721329105222,6.3788,156.77,156.69,15.9075]
[1721329105529,0.80486766,156.76,156.69,15.9075]
[1721329106224,0.80486766,156.76,156.74,6.3799]
[1721329106408,0.80486766,156.77,156.74,6.3799]
[1721329107033,0.80486766,156.78,156.76,6.3791]
[1721329107224,0.80486766,156.79,156.76,6.3791]
[1721329107628,7.18296766,156.79,156.75,6.3794]
[1721329107840,6.3785,156.78,156.71,45.0]
[1721329108019,0.80486766,156.77,156.71,45.0]
[1721329108426,0.80486766,156.77,156.74,6.3797]
[1721329108626,0.80486766,156.77,156.75,6.3795]
[1721329108815,0.80486766,156.78,156.75,6.3795]
[1721329110224,7.18316766,156.78,156.74,6.3798]
[1721329110426,6.3783,156.78,156.74,6.3798]
[1721329110831,7.18366766,156.77,156.71,45.0]
[1721329111623,6.3791,156.76,156.71,45.0]
[1721329111821,6.3801,156.74,156.69,6.3816]
[1721329112058,0.80486766,156.73,156.69,6.3816]
[1721329112225,0.80486766,156.73,156.7,6.3815]
[1721329113317,0.80486766,156.73,156.69,6.3819]
[1721329113318,7.18526766,156.73,156.69,6.3819]
[1721329114741,0.80486766,156.73,156.69,6.3819]
[1721329114943,0.80486766,156.73,156.7,6.3814]
[1721329119742,16.59986766,156.74,156.64,15.4895]
[1721329119940,0.80486766,156.75,156.65,66.27616783]
[1721329120143,6.3788,156.77,156.73,6.38]
[1721329120340,0.80486766,156.77,156.74,6.3798]
[1721329120533,0.80486766,156.77,156.75,6.3795]
[1721329120841,0.80486766,156.77,156.76,6.3791]
[1721329121035,0.80486766,156.77,156.75,6.3795]
[1721329121236,0.80486766,156.77,156.69,6.2949]
[1721329121443,7.18406766,156.76,156.72,6.3805]
[1721329122144,0.80486766,156.76,156.69,6.2949]
[1721329122354,0.80486766,156.77,156.7,65.0]
[1721329122517,0.80486766,156.76,156.7,65.0]
[1721329122718,7.18396766,156.76,156.72,6.3805]
[1721329123145,6.3796,156.75,156.71,6.3811]
[1721329123443,0.80486766,156.74,156.71,6.3811]
[1721329124038,0.80486766,156.73,156.7,6.3815]
[1721329124231,7.18556766,156.73,156.69,6.3818]
[1721329125321,6.3808,156.72,156.68,6.3823]
[1721329125522,0.80486766,156.71,156.68,6.3823]
[1721329125723,0.80486766,156.71,156.65,6.3336]
[1721329125724,0.80486766,156.71,156.69,6.3819]
[1721329126446,7.18676766,156.7,156.66,6.3829]
[1721329126837,0.80486766,156.7,156.67,6.3828]
[1721329127148,0.80486766,156.7,156.6,28.36775891]
[1721329127149,0.80486766,156.7,156.68,6.3824]
[1721329127722,0.80486766,156.7,156.67,6.3826]
[1721329129534,0.80486766,156.7,156.68,6.3823]
[1721329129943,0.80486766,156.7,156.6,28.36775891]
[1721329130263,0.80486766,156.7,156.68,6.382]
[1721329131137,0.80486766,156.7,156.69,6.382]
[1721329131736,0.80486766,156.7,156.68,6.3823]
[1721329132262,0.80486766,156.7,156.67,6.3826]
[1721329132653,0.80486766,156.7,156.68,6.3822]
[1721329132961,0.80486766,156.7,156.68,6.3823]
[1721329133159,0.80486766,156.7,156.67,6.3827]
[1721329133338,0.80486766,156.7,156.68,6.3823]
[1721329135064,0.80486766,156.7,156.67,6.3827]
[1721329136239,12.53,156.69,156.66,6.3831]
[1721329137939,0.80486766,156.68,156.66,6.3831]
[1721329138161,12.53,156.67,156.65,6.3836]
[1721329139366,13.33486766,156.66,156.61,20.0]
[1721329139671,13.33486766,156.66,156.64,6.384]
[1721329139866,0.80486766,156.66,156.64,6.384]
[1721329140038,13.33486766,156.66,156.64,6.384]
[1721329140553,12.53,156.65,156.63,6.3843]
[1721329140758,12.53,156.65,156.64,6.384]
[1721329141062,12.53,156.65,156.63,6.3843]
[1721329142061,12.53,156.65,156.64,6.384]
[1721329143844,12.53,156.66,156.64,6.384]
[1721329145451,13.33486766,156.65,156.63,6.3843]
[1721329145656,12.53,156.64,156.59,12.53]
[1721329145864,12.53,156.62,156.61,6.3851]
[1721329146160,12.53,156.62,156.56,15.9790703]
[1721329146161,12.53,156.62,156.57,20.0]
[1721329146366,12.53,156.61,156.57,20.0]
[1721329146566,12.53,156.62,156.61,6.3852]
[1721329148366,0.80486766,156.64,156.57,32.53]
[1721329148367,0.80486766,156.64,156.62,6.3848]
[1721329148552,0.80486766,156.65,156.58,1.27706293]
[1721329148852,0.80486766,156.64,156.58,45.0]
[1721329149056,6.3833,156.66,156.62,6.3848]
[1721329149269,0.80486766,156.65,156.62,6.3848]
[1721329149467,0.80486766,156.66,156.59,1.27698352]
[1721329149656,0.80486766,156.66,156.64,6.384]
[1721329150162,0.80486766,156.66,156.59,1.27698352]
[1721329150163,0.80486766,156.66,156.63,6.3843]
[1721329150546,0.80486766,156.67,156.64,6.384]
[1721329151566,17.36446766,156.68,156.59,1.27670958]
[1721329151880,0.80486766,156.67,156.65,6.3836]
[1721329152880,0.80486766,156.67,156.63,6.3843]
[1721329153179,0.80486766,156.67,156.64,6.384]
[1721329153882,0.80486766,156.67,156.65,6.3836]
[1721329154062,0.80486766,156.68,156.66,6.3832]
[1721329154384,35.365,156.73,156.66,6.3832]
[1721329154385,7.18656766,156.7,156.66,6.3832]
[1721329154555,7.18656766,156.7,156.65,6.3835]
[1721329154756,6.382,156.69,156.65,6.3835]
[1721329155072,0.80486766,156.68,156.65,6.3835]
[1721329156261,6.3817,156.7,156.66,6.3831]
[1721329156571,0.80486766,156.75,156.64,25.09]
[1721329156773,257.6,156.8,156.75,6.3792]
[1721329156774,0.80486766,156.79,156.75,6.3792]
[1721329156987,7.18276766,156.79,156.75,6.3792]
[1721329157159,0.80486766,156.79,156.76,6.379]
[1721329158303,0.80486766,156.79,156.71,1.27579788]
[1721329158454,0.80486766,156.79,156.76,6.3791]
[1721329159778,7.18276766,156.79,156.74,6.3796]
[1721329159969,6.3784,156.78,156.74,6.3796]
[1721329160149,6.3784,156.78,156.73,6.3802]
[1721329160150,0.80486766,156.77,156.73,6.3802]
[1721329160783,0.80486766,156.77,156.74,6.3798]
[1721329161177,0.80486766,156.78,156.74,6.3798]
[1721329161669,0.80486766,156.78,156.76,6.3791]
[1721329162065,0.80486766,156.78,156.75,6.3794]
[1721329163563,0.80486766,156.78,156.74,6.3798]
[1721329163787,0.80486766,156.78,156.7,41.1649]
[1721329163788,6.3779,156.79,156.75,6.3794]
[1721329163974,0.80486766,156.8,156.76,6.3791]
[1721329163975,0.80486766,156.78,156.76,6.3791]
[1721329164181,6.3776,156.8,156.76,6.3791]
[1721329165064,6.3776,156.8,156.75,6.3794]
[1721329165277,0.80486766,156.79,156.75,6.3794]
[1721329165583,0.80486766,156.79,156.7,41.1649]
[1721329165777,0.80486766,156.79,156.76,6.3791]
[1721329167209,0.80486766,156.79,156.75,6.3794]
[1721329167700,6.3783,156.78,156.74,6.3799]
[1721329167910,0.80486766,156.77,156.74,6.3799]
[1721329168987,0.80486766,156.78,156.74,6.3799]
[1721329169294,0.80486766,156.78,156.71,6.3808]
[1721329169792,6.3809,156.72,156.68,6.3823]
[1721329169982,0.80486766,156.71,156.69,6.3818]
[1721329170180,6.3804,156.73,156.69,6.3818]
[1721329171184,0.80486766,156.72,156.69,6.3818]
[1721329172974,7.18576766,156.72,156.68,6.3823]
[1721329173170,15.7536,156.71,156.65,6.3835]
[1721329173371,0.80486766,156.7,156.65,6.3835]
[1721329173570,6.3823,156.69,156.64,6.384]
[1721329173799,0.80486766,156.68,156.64,6.384]
[1721329175175,0.80486766,156.68,156.65,6.3835]
[1721329176598,0.80486766,156.68,156.64,6.3839]
[1721329176800,0.80486766,156.68,156.65,6.3836]
[1721329177202,0.80486766,156.68,156.66,6.3831]
[1721329177402,0.80486766,156.69,156.61,6.5871]
[1721329177606,0.80486766,156.69,156.62,45.0]
[1721329177789,6.3824,156.68,156.62,45.0]
[1721329177989,0.80486766,156.67,156.62,45.0]
[1721329178487,0.80486766,156.67,156.64,6.384]
[1721329179406,0.80486766,156.67,156.65,6.3835]
[1721329179708,7.18696766,156.69,156.65,6.3835]
[1721329179895,7.18696766,156.69,156.64,6.3839]
[1721329180096,6.3825,156.68,156.64,6.3839]
[1721329180403,0.80486766,156.67,156.64,6.3839]
[1721329180598,0.80486766,156.67,156.65,6.3834]
[1721329181200,0.80486766,156.68,156.65,6.3834]
[1721329183283,0.80486766,156.67,156.58,15.8152]
[1721329183609,50.8868,156.71,156.61,6.3852]
[1721329183906,50.8868,156.71,156.6,6.3853]
[1721329183907,6.3837,156.65,156.6,6.3853]
[1721329184607,6.3844,156.63,156.59,6.3859]
[1721329184906,7.18766766,156.67,156.63,6.3843]
[1721329185804,0.80486766,156.67,156.64,6.3838]
[1721329185998,0.80486766,156.67,156.65,6.3835]
[1721329186503,0.80486766,156.67,156.64,6.3839]
[1721329187303,0.80486766,156.67,156.66,6.3832]
[1721329187505,0.80486766,156.67,156.63,6.3843]
[1721329187701,7.18766766,156.67,156.63,6.3843]
[1721329187887,7.18766766,156.67,156.64,6.384]
[1721329187888,0.80486766,156.67,156.64,6.384]
[1721329189510,0.80486766,156.67,156.6,45.0]
[1721329189688,7.18776766,156.67,156.6,45.0]
[1721329190095,6.3842,156.64,156.6,51.3856]
[1721329190314,6.3835,156.66,156.62,6.3848]
[1721329190494,0.80486766,156.65,156.62,6.3848]
[1721329190689,7.18866766,156.65,156.6,45.0]
[1721329191187,6.3841,156.64,156.56,25.8952703]
[1721329191384,0.80486766,156.63,156.6,6.3853]
[1721329191601,0.80486766,156.63,156.56,2.08242236]
[1721329191803,51.7053,156.68,156.6,6.3854]
[1721329191804,6.384,156.64,156.6,6.3854]
[1721329192011,0.80486766,156.63,156.6,6.3854]
[1721329193340,6.3836,156.66,156.62,6.3845]
[1721329193506,0.80486766,156.67,156.63,6.3844]
[1721329193507,0.80486766,156.65,156.63,6.3844]
[1721329193811,0.80486766,156.65,156.63,6.3842]
[1721329194388,0.80486766,156.65,156.62,6.3847]
[1721329194592,0.80486766,156.66,156.63,6.3842]
[1721329195005,0.80486766,156.66,156.62,6.3847]
[1721329195325,7.18816766,156.66,156.62,6.3847]
[1721329196094,0.80486766,156.65,156.62,6.3847]
[1721329198016,0.80486766,156.65,156.63,6.3843]
[1721329198225,6.3828,156.67,156.63,6.3843]
[1721329198226,0.80486766,156.66,156.63,6.3843]
[1721329198596,0.80486766,156.66,156.62,6.3847]
[1721329199217,7.18816766,156.66,156.62,6.3847]
[1721329199416,0.80486766,156.65,156.62,6.3847]
[1721329201016,6.3843,156.64,156.59,6.3858]
[1721329201207,0.80486766,156.63,156.59,6.3858]
[1721329201408,0.80486766,156.63,156.56,0.8052703]
[1721329201608,0.80486766,156.63,156.57,6.3866]
[1721329201609,6.3853,156.61,156.57,6.3866]
[1721329201809,0.80486766,156.6,156.58,6.3864]
[1721329202009,0.80486766,156.61,156.59,6.3861]
[1721329202237,0.80486766,156.6,156.58,6.3863]
[1721329202422,0.80486766,156.61,156.59,6.386]
[1721329202739,0.80486766,156.61,156.58,6.3864]
[1721329204322,0.80486766,156.61,156.59,6.386]
[1721329204751,0.80486766,156.61,156.58,6.3863]
[1721329205361,0.80486766,156.62,156.61,6.3852]
[1721329205515,0.80486766,156.68,156.61,45.0]
[1721329205721,21.556,156.7,156.61,45.0]
[1721329205722,0.80486766,156.67,156.65,6.3836]
[1721329206231,7.18686766,156.69,156.65,6.3836]
[1721329206527,6.3825,156.68,156.64,12.53]
[1721329206738,7.18776766,156.67,156.63,18.9143]
[1721329206932,6.3832,156.66,156.58,6.1675]
[1721329207140,34.3542,156.7,156.6,6.3856]
[1721329207141,6.384,156.64,156.6,6.3856]
[1721329207446,0.80486766,156.63,156.6,6.3856]
[1721329208363,13.33486766,156.67,156.61,12.53]
[1721329208554,12.53,156.65,156.6,6.3855]
[1721329208721,0.80486766,156.64,156.61,6.3849]
[1721329208916,0.80486766,156.64,156.62,6.3845]
[1721329209220,0.80486766,156.64,156.61,6.3852]
[1721329209846,19.71936766,156.63,156.59,6.3859]
[1721329210349,19.71936766,156.63,156.57,12.53]
[1721329210527,13.33486766,156.63,156.57,12.53]
[1721329210729,13.33486766,156.63,156.6,6.3853]
[1721329211442,13.33486766,156.63,156.58,12.53]
[1721329211443,18.9149,156.62,156.58,6.3864]
[1721329211643,12.53,156.59,156.56,0.8052703]
[1721329211953,12.53,156.57,156.56,0.8052703]
[1721329212127,0.80486766,156.58,156.56,7.1925703]
[1721329212323,18.9165,156.58,156.56,0.8052703]
[1721329212542,12.53,156.58,156.56,0.8052703]
[1721329213150,34.7879,156.57,156.56,0.8052703]
[1721329214134,28.401,156.57,156.56,0.8052703]
[1721329214445,15.871,156.57,156.56,0.8052703]
[1721329215928,0.80486766,156.58,156.56,0.8052703]
[1721329217143,0.80486766,156.6,156.56,0.8052703]
[1721329217357,0.80486766,156.61,156.6,6.3856]
[1721329217522,21.651,156.65,156.6,6.3856]
[1721329217523,7.18906766,156.64,156.6,6.3856]
[1721329217724,0.80486766,156.64,156.56,0.8052703]
[1721329218142,6.3845,156.63,156.59,6.3858]
[1721329218363,0.80486766,156.62,156.59,6.3858]
[1721329218541,0.80486766,156.62,156.58,6.3864]
[1721329219137,7.18976766,156.62,156.58,6.3864]
[1721329219842,0.80486766,156.62,156.56,2.08260279]
[1721329220050,0.80486766,156.64,156.56,47.08260279]
[1721329220249,0.80486766,156.64,156.6,6.3853]
[1721329220250,7.18916766,156.64,156.6,6.3853]
[1721329220549,7.18916766,156.64,156.59,6.3858]
[1721329221248,6.3845,156.63,156.59,6.3858]
[1721329221455,0.80486766,156.62,156.58,6.3864]
[1721329221948,0.80486766,156.64,156.57,1.27729321]
[1721329222147,0.80486766,156.64,156.58,1.27704795]
[1721329222355,0.80486766,156.64,156.56,45.8052703]
[1721329222729,0.80486766,156.64,156.61,6.385]
[1721329223243,0.80486766,156.64,156.62,6.3847]
[1721329223451,0.80486766,156.65,156.6,6.3854]
[1721329223648,0.80486766,156.64,156.58,1.27703396]
[1721329223839,6.246,156.67,156.58,1.27703396]
[1721329224041,6.246,156.67,156.58,46.27703396]
[1721329224440,6.3836,156.65,156.61,6.3849]
[1721329224646,15.275,156.68,156.59,1.27698487]
[1721329224960,0.80486766,156.67,156.65,6.3834]
[1721329225163,0.80486766,156.67,156.64,6.3839]
[1721329225361,0.80486766,156.67,156.65,6.3834]
[1721329226161,0.80486766,156.67,156.64,6.384]
[1721329226344,0.80486766,156.67,156.63,6.3843]
[1721329226547,0.80486766,156.67,156.64,6.384]
[1721329228057,0.80486766,156.67,156.58,70.11]
[1721329228259,0.80486766,156.67,156.64,6.3839]
[1721329228943,6.3837,156.65,156.61,6.3851]
[1721329229144,0.80486766,156.64,156.62,6.3847]
[1721329229345,0.80486766,156.66,156.6,6.3853]
[1721329229554,6.3838,156.65,156.6,6.3853]
[1721329229758,0.80486766,156.64,156.6,6.3853]
[1721329229945,7.18896766,156.64,156.6,6.3853]
[1721329230144,7.18896766,156.64,156.58,6.3863]
[1721329230145,6.3847,156.63,156.58,6.3863]
[1721329230344,0.80486766,156.62,156.58,6.3863]
[1721329230563,7.18986766,156.62,156.58,6.3863]
[1721329230871,7.18986766,156.62,156.57,6.3867]
[1721329231476,7.18986766,156.62,156.58,6.3865]
[1721329231960,6.3853,156.61,156.57,6.3867]
[1721329232164,0.80486766,156.6,156.57,6.3867]
[1721329233939,0.80486766,156.61,156.56,0.8052703]
[1721329234149,0.80486766,156.63,156.56,0.8052703]
[1721329234372,0.80486766,156.67,156.56,2.08240104]
[1721329234668,0.80486766,156.67,156.56,20.8052703]
[1721329234845,0.80486766,156.67,156.57,45.0]
[1721329235043,0.80486766,156.67,156.58,1.27684897]
[1721329235240,0.80486766,156.67,156.58,21.27688749]
[1721329235460,0.80486766,156.67,156.59,45.0]
[1721329235642,0.80486766,156.67,156.6,21.27678466]
[1721329235844,0.80486766,156.67,156.61,46.27678466]
[1721329236058,0.80486766,156.67,156.61,62.67848466]
[1721329236273,7.18656766,156.7,156.66,6.3829]
[1721329237678,0.80486766,156.7,156.68,6.3822]
[1721329237846,0.80486766,156.7,156.62,1.27668184]
[1721329238043,0.80486766,156.7,156.62,21.27668184]
[1721329238248,0.80486766,156.72,156.7,6.3814]
[1721329238568,0.80486766,156.72,156.69,6.382]
[1721329238768,7.18576766,156.72,156.68,6.3823]
[1721329238971,0.80486766,156.72,156.69,6.382]
[1721329240451,0.80486766,156.72,156.7,6.3814]
[1721329240650,0.80486766,156.74,156.7,6.3814]
[1721329240853,7.18536766,156.73,156.69,6.3819]
[1721329241160,0.80486766,156.73,156.7,6.3814]
[1721329241568,0.80486766,156.73,156.71,6.3809]
[1721329241753,15.8535,156.77,156.67,25.11]
[1721329241951,15.8535,156.77,156.68,65.0]
[1721329242173,15.8535,156.77,156.69,1.27611654]
[1721329242689,0.80486766,156.76,156.69,1.27611654]
[1721329242886,0.80486766,156.76,156.75,6.3795]
[1721329243054,7.18316766,156.78,156.74,6.3799]
[1721329243679,7.18316766,156.78,156.68,80.518]
[1721329243988,6.3788,156.77,156.73,6.3803]
[1721329244153,7.18366766,156.77,156.73,6.3803]
[1721329244687,0.80486766,156.77,156.73,6.3803]
[1721329245457,0.80486766,156.77,156.74,6.3799]
[1721329245682,0.80486766,156.77,156.75,6.3795]
[1721329245902,0.80486766,156.78,156.75,6.3795]
[1721329246095,0.80486766,156.78,156.76,6.379]
[1721329246266,0.80486766,156.8,156.77,6.3786]
[1721329246461,0.80486766,156.79,156.77,6.3786]
[1721329247297,0.80486766,156.8,156.78,6.3783]
[1721329247800,15.8535,156.81,156.71,1.27582895]
[1721329247801,0.80486766,156.81,156.79,6.3779]
[1721329248307,0.80486766,156.81,156.8,6.3775]
[1721329248463,0.80486766,156.82,156.74,1.27563911]
[1721329248777,0.80486766,156.82,156.74,66.27563911]
[1721329248975,0.80486766,156.82,156.79,6.3778]
[1721329249174,0.80486766,156.84,156.75,16.0964]
[1721329249378,0.80486766,156.84,156.76,91.38535004]
[1721329249575,0.80486766,156.84,156.82,6.3767]
[1721329249767,0.80486766,156.84,156.81,6.377]
[1721329249969,0.80486766,156.84,156.82,6.3766]
[1721329250588,0.80486766,156.84,156.81,6.377]
[1721329251194,0.80486766,156.88,156.84,6.3757]
[1721329251969,0.80486766,156.88,156.79,25.11]
[1721329252207,6.3749,156.87,156.83,6.3762]
[1721329252377,6.5361,156.89,156.84,6.3755]
[1721329252378,0.80486766,156.86,156.84,6.3755]
[1721329252572,0.80486766,156.88,156.84,6.3755]
[1721329252777,7.17916766,156.88,156.84,6.3755]
[1721329253205,7.17916766,156.88,156.83,6.3762]
[1721329253614,6.3747,156.87,156.82,6.3766]
[1721329253820,0.80486766,156.86,156.82,6.3766]
[1721329254277,0.80486766,156.85,156.82,6.3766]
[1721329255978,0.80486766,156.85,156.75,16.0964]
[1721329256293,0.80486766,156.84,156.81,6.377]
[1721329256489,0.80486766,156.84,156.75,16.0964]
[1721329256680,0.80486766,156.84,156.83,6.3763]
[1721329256881,0.80486766,156.88,156.75,16.0964]
[1721329257096,0.80486766,156.88,156.76,1.27532299]
[1721329257295,0.80486766,156.88,156.85,6.3754]
[1721329257502,0.80486766,156.88,156.83,6.3761]
[1721329257503,7.17916766,156.88,156.83,6.3761]
[1721329257905,29.2943588,156.9,156.85,6.3752]
[1721329258075,22.9207588,156.9,156.88,6.374]
[1721329258397,16.2535,156.9,156.87,6.3745]
[1721329258901,0.80486766,156.89,156.87,6.3745]
[1721329259090,0.80486766,156.89,156.86,6.375]
[1721329260032,0.80486766,156.89,156.87,6.3746]
[1721329260409,0.80486766,156.89,156.86,6.3749]
[1721329260624,0.80486766,156.89,156.87,6.3746]
[1721329260947,23.43196766,156.9,156.86,6.375]
[1721329261124,17.05836766,156.9,156.86,6.375]
[1721329261928,0.80486766,156.89,156.8,6.311]
[1721329262228,6.3746,156.88,156.84,6.3756]
[1721329262418,16.2535,156.9,156.81,21.27506845]
[1721329262419,7.17956766,156.87,156.81,21.27506845]
[1721329262625,7.17956766,156.87,156.82,6.3764]
[1721329263059,7.17956766,156.87,156.83,6.3761]
[1721329263343,7.17956766,156.87,156.76,31.2104]
[1721329263344,0.80486766,156.87,156.76,31.2104]
[1721329263511,0.80486766,156.88,156.77,1.27536507]
[1721329263837,6.3748,156.87,156.83,6.3762]
[1721329264018,0.80486766,156.86,156.83,6.3762]
[1721329264204,0.80486766,156.86,156.84,6.3758]
[1721329264399,0.80486766,156.87,156.85,6.3753]
[1721329264641,0.80486766,156.89,156.79,25.11]
[1721329264938,16.2535,156.9,156.87,6.3745]
[1721329265335,16.2535,156.9,156.8,65.0]
[1721329265336,0.80486766,156.89,156.8,65.0]
[1721329265642,16.2535,156.9,156.88,6.3741]
[1721329265643,17.05836766,156.9,156.88,6.3741]
[1721329265816,16.2535,156.9,156.89,6.3738]
[1721329266005,0.80486766,156.92,156.89,6.3738]
[1721329266905,0.80486766,156.92,156.88,6.3741]
[1721329267319,0.80486766,156.92,156.89,6.3738]
[1721329267524,16.2771,156.94,156.9,6.373]
[1721329267744,7.17626766,156.95,156.91,6.3729]
[1721329268350,7.17626766,156.95,156.9,6.3733]
[1721329268522,0.80486766,156.94,156.9,6.3733]
[1721329268722,7.17676766,156.94,156.9,6.3733]
[1721329269019,0.80486766,156.96,156.91,1.27454081]
[1721329269244,0.80486766,156.95,156.87,21.27448305]
[1721329269416,16.2771,156.98,156.88,45.0]
[1721329269735,16.2771,156.98,156.89,1.27448248]
[1721329269937,6.3711,156.96,156.92,6.3725]
[1721329270519,0.80486766,156.95,156.92,6.3725]
[1721329270727,7.17636766,156.95,156.91,6.373]
[1721329271123,0.80486766,156.95,156.91,6.373]
[1721329271827,0.80486766,156.97,156.92,45.0]
[1721329272030,0.80486766,156.97,156.88,45.0]
[1721329272425,6.3714,156.95,156.91,6.3727]
[1721329272620,6.3711,156.96,156.92,6.3726]
[1721329273226,7.17546766,156.97,156.93,6.3722]
[1721329273421,0.80486766,156.97,156.96,6.371]
[1721329273628,6.3605,157.01,156.91,25.11]
[1721329273848,0.80486766,157.0,156.92,66.27419465]